[Event "Early-Titled-Tuesday-Blitz-June-18-2024"]
[Site "Chess.com"]
[Date "2024.06.18"]
[Round "2"]
[White "Defend1r"]
[Black "GMAneta"]
[Result "1-0"]
[WhiteElo "2549"]
[BlackElo "2358"]
[TimeControl "180+1"]
[EndTime "8:19:38 PDT"]
[Termination "Defend1r won on time"]

1. e4 {[%clk 0:02:48.9]} 1... c5 {[%clk 0:02:58.9]} 2. Nf3 {[%clk 0:02:48.5]}
2... Nc6 {[%clk 0:02:59]} 3. Bb5 {[%clk 0:02:46.4]} 3... Qc7 {[%clk 0:02:58.9]}
4. O-O {[%clk 0:02:44.1]} 4... Nf6 {[%clk 0:02:58]} 5. Qe2 {[%clk 0:02:43.5]}
5... a6 {[%clk 0:02:54.6]} 6. Bd3 {[%clk 0:02:41.3]} 6... e6 {[%clk 0:02:52.8]}
7. c3 {[%clk 0:02:41.4]} 7... b5 {[%clk 0:02:51.8]} 8. Bc2 {[%clk 0:02:41]} 8...
Bb7 {[%clk 0:02:46.1]} 9. d4 {[%clk 0:02:40.6]} 9... cxd4 {[%clk 0:02:43.5]} 10.
cxd4 {[%clk 0:02:41.5]} 10... Nb4 {[%clk 0:02:44]} 11. Bb3 {[%clk 0:02:10.9]}
11... Bxe4 {[%clk 0:02:41.2]} 12. Rd1 {[%clk 0:02:10.1]} 12... Bc2 {[%clk
0:02:36.5]} 13. Nc3 {[%clk 0:01:50.6]} 13... Bxd1 {[%clk 0:02:34.3]} 14. Qxd1
{[%clk 0:01:51.2]} 14... Be7 {[%clk 0:02:32.8]} 15. a3 {[%clk 0:01:46.9]} 15...
Nbd5 {[%clk 0:02:31.1]} 16. Nxd5 {[%clk 0:01:40.6]} 16... Nxd5 {[%clk 0:02:32]}
17. Bxd5 {[%clk 0:01:36.9]} 17... exd5 {[%clk 0:02:32.9]} 18. Qe2 {[%clk
0:01:31.5]} 18... d6 {[%clk 0:02:31.6]} 19. Bg5 {[%clk 0:01:29.2]} 19... f6
{[%clk 0:02:28.1]} 20. Bf4 {[%clk 0:01:25.7]} 20... Qd7 {[%clk 0:02:23.2]} 21.
Re1 {[%clk 0:01:22.6]} 21... Ra7 {[%clk 0:02:22.3]} 22. Nd2 {[%clk 0:01:07.8]}
22... O-O {[%clk 0:02:20.5]} 23. Qf3 {[%clk 0:01:07.1]} 23... Qc6 {[%clk
0:02:13.4]} 24. Nb1 {[%clk 0:01:06.5]} 24... Bd8 {[%clk 0:01:53.5]} 25. Nc3
{[%clk 0:01:05.8]} 25... Ba5 {[%clk 0:01:17.1]} 26. b4 {[%clk 0:00:54.7]} 26...
Bb6 {[%clk 0:01:16.9]} 27. Nxd5 {[%clk 0:00:54.5]} 27... Kh8 {[%clk 0:01:16.7]}
28. Qe4 {[%clk 0:00:44.2]} 28... Raf7 {[%clk 0:01:11.6]} 29. Qe6 {[%clk
0:00:41]} 29... Rd7 {[%clk 0:00:59]} 30. Nxb6 {[%clk 0:00:31.6]} 30... Rc7
{[%clk 0:00:53.4]} 31. Bxd6 {[%clk 0:00:27.6]} 31... Qxb6 {[%clk 0:00:52.3]} 32.
Bxc7 {[%clk 0:00:11.2]} 32... Qxc7 {[%clk 0:00:51.3]} 33. d5 {[%clk 0:00:11.4]}
33... h6 {[%clk 0:00:46]} 34. d6 {[%clk 0:00:11.3]} 34... Qc3 {[%clk 0:00:46.1]}
35. Qe7 {[%clk 0:00:09.9]} 35... Kh7 {[%clk 0:00:44.5]} 36. h3 {[%clk
0:00:09.1]} 36... Rd8 {[%clk 0:00:38.2]} 37. Re3 {[%clk 0:00:05.7]} 37... Qc1+
{[%clk 0:00:33]} 38. Kh2 {[%clk 0:00:05]} 38... Qc8 {[%clk 0:00:33.2]} 39. Rg3
{[%clk 0:00:05.6]} 39... Rg8 {[%clk 0:00:32]} 40. d7 {[%clk 0:00:05.3]} 40...
Qc7 {[%clk 0:00:32.1]} 41. f3 {[%clk 0:00:03.6]} 41... Qe5 {[%clk 0:00:30.2]}
42. Qxe5 {[%clk 0:00:03.2]} 42... fxe5 {[%clk 0:00:30.3]} 43. f4 {[%clk
0:00:04]} 43... Rd8 {[%clk 0:00:29.1]} 44. fxe5 {[%clk 0:00:03]} 44... Rxd7
{[%clk 0:00:29.3]} 45. Re3 {[%clk 0:00:03.6]} 45... Kg6 {[%clk 0:00:28.7]} 46.
g4 {[%clk 0:00:03]} 46... Rd2+ {[%clk 0:00:23.2]} 47. Kg3 {[%clk 0:00:03.5]}
47... Kf7 {[%clk 0:00:24.1]} 48. Kf4 {[%clk 0:00:03.3]} 48... Ke6 {[%clk
0:00:24.3]} 49. Ke4 {[%clk 0:00:04.2]} 49... Rc2 {[%clk 0:00:22.8]} 50. Rd3
{[%clk 0:00:04.3]} 50... Rc4+ {[%clk 0:00:21.8]} 51. Ke3 {[%clk 0:00:03.9]}
51... Kxe5 {[%clk 0:00:20.4]} 52. Kf3 {[%clk 0:00:04.2]} 52... Rc2 {[%clk
0:00:19.7]} 53. Re3+ {[%clk 0:00:04.1]} 53... Kd4 {[%clk 0:00:19.6]} 54. Re4+
{[%clk 0:00:04.5]} 54... Kd5 {[%clk 0:00:19.5]} 55. Re3 {[%clk 0:00:04.3]} 55...
Ra2 {[%clk 0:00:19.1]} 56. Kf4 {[%clk 0:00:04.4]} 56... Kd4 {[%clk 0:00:17.7]}
57. Rf3 {[%clk 0:00:04.3]} 57... Re2 {[%clk 0:00:14.9]} 58. Kf5 {[%clk
0:00:04.5]} 58... Re7 {[%clk 0:00:13.9]} 59. Kg6 {[%clk 0:00:04.2]} 59... Kc4
{[%clk 0:00:14.2]} 60. h4 {[%clk 0:00:02.5]} 60... Rd7 {[%clk 0:00:12]} 61. h5
{[%clk 0:00:02.7]} 61... Rc7 {[%clk 0:00:11.9]} 62. Rf7 {[%clk 0:00:02.9]} 62...
Rc6+ {[%clk 0:00:10]} 63. Kxg7 {[%clk 0:00:02.7]} 63... Kb3 {[%clk 0:00:10.9]}
64. Rf3+ {[%clk 0:00:02.8]} 1-0

[Event "Early-Titled-Tuesday-Blitz-June-18-2024"]
[Site "Chess.com"]
[Date "2024.06.18"]
[Round "2"]
[White "AGW2016"]
[Black "KINGOF2SOAP"]
[Result "1-0"]
[WhiteElo "2546"]
[BlackElo "2355"]
[TimeControl "180+1"]
[EndTime "8:19:41 PDT"]
[Termination "AGW2016 won by checkmate"]

1. d4 {[%clk 0:03:00.9]} 1... c5 {[%clk 0:02:59]} 2. d5 {[%clk 0:03:00.8]} 2...
d6 {[%clk 0:02:58.5]} 3. c4 {[%clk 0:03:01.4]} 3... b5 {[%clk 0:02:58.6]} 4.
cxb5 {[%clk 0:03:01.6]} 4... a6 {[%clk 0:02:58.6]} 5. bxa6 {[%clk 0:03:02.5]}
5... Bxa6 {[%clk 0:02:58.6]} 6. Nc3 {[%clk 0:03:03.2]} 6... g6 {[%clk
0:02:58.2]} 7. e4 {[%clk 0:03:03.9]} 7... Bg7 {[%clk 0:02:58.7]} 8. Nf3 {[%clk
0:03:02.8]} 8... Qa5 {[%clk 0:02:59]} 9. Bd2 {[%clk 0:03:02.8]} 9... Bxf1 {[%clk
0:02:58.8]} 10. Kxf1 {[%clk 0:03:03.2]} 10... Nf6 {[%clk 0:02:54.8]} 11. g3
{[%clk 0:03:03.2]} 11... Nbd7 {[%clk 0:02:53.9]} 12. Kg2 {[%clk 0:03:03.7]}
12... O-O {[%clk 0:02:53.1]} 13. Re1 {[%clk 0:03:04.4]} 13... Qc7 {[%clk
0:02:52.6]} 14. b3 {[%clk 0:03:04.6]} 14... e6 {[%clk 0:02:43.9]} 15. Bg5 {[%clk
0:02:35]} 15... Ne8 {[%clk 0:02:39.1]} 16. Be7 {[%clk 0:02:25.5]} 16... Bxc3
{[%clk 0:02:37.4]} 17. Bxf8 {[%clk 0:02:25.8]} 17... Nxf8 {[%clk 0:02:35.9]} 18.
dxe6 {[%clk 0:02:25.8]} 18... fxe6 {[%clk 0:02:34.9]} 19. e5 {[%clk 0:02:25.8]}
19... d5 {[%clk 0:02:33.4]} 20. h4 {[%clk 0:02:24]} 20... Bxe1 {[%clk
0:02:30.9]} 21. Qxe1 {[%clk 0:02:24.4]} 21... Ng7 {[%clk 0:02:30.3]} 22. a4
{[%clk 0:02:23.5]} 22... Qb7 {[%clk 0:02:30]} 23. Qc3 {[%clk 0:02:21.9]} 23...
d4 {[%clk 0:02:29.1]} 24. Qxc5 {[%clk 0:02:21.5]} 24... Qxb3 {[%clk 0:02:28.2]}
25. Qxd4 {[%clk 0:02:21]} 25... Nf5 {[%clk 0:02:25.4]} 26. Qe4 {[%clk 0:02:21]}
26... Rb8 {[%clk 0:02:15.8]} 27. a5 {[%clk 0:02:20.7]} 27... Qb7 {[%clk
0:02:14.8]} 28. Qxb7 {[%clk 0:02:16.5]} 28... Rxb7 {[%clk 0:02:15.7]} 29. g4
{[%clk 0:02:15.7]} 29... Ne7 {[%clk 0:02:15]} 30. Nd4 {[%clk 0:02:15.9]} 30...
Nd5 {[%clk 0:02:12.1]} 31. a6 {[%clk 0:02:16.1]} 31... Ra7 {[%clk 0:02:12.2]}
32. Nb5 {[%clk 0:02:15.3]} 32... Ra8 {[%clk 0:02:12.4]} 33. a7 {[%clk
0:02:13.8]} 33... Nd7 {[%clk 0:02:11]} 34. Kg3 {[%clk 0:02:10.7]} 34... Nxe5
{[%clk 0:02:10.8]} 35. Re1 {[%clk 0:02:05.8]} 35... Nc6 {[%clk 0:02:09.3]} 36.
Rxe6 {[%clk 0:02:06.1]} 36... Nxa7 {[%clk 0:02:09.5]} 37. Ra6 {[%clk 0:02:04.9]}
37... Nxb5 {[%clk 0:01:30.8]} 38. Rxa8+ {[%clk 0:02:04.9]} 38... Kg7 {[%clk
0:01:29.1]} 39. f4 {[%clk 0:01:57.1]} 39... Nbc7 {[%clk 0:01:27.7]} 40. Ra7
{[%clk 0:01:54.4]} 40... Kf6 {[%clk 0:01:26.1]} 41. Kf3 {[%clk 0:01:53.4]} 41...
h5 {[%clk 0:01:25]} 42. Kg3 {[%clk 0:01:39.5]} 42... Ne6 {[%clk 0:01:20.7]} 43.
g5+ {[%clk 0:01:11.6]} 43... Kf5 {[%clk 0:01:18.6]} 44. Rf7+ {[%clk 0:01:11.9]}
44... Ke4 {[%clk 0:01:18]} 45. f5 {[%clk 0:01:12.5]} 45... gxf5 {[%clk
0:00:59.4]} 46. g6 {[%clk 0:01:11.6]} 46... f4+ {[%clk 0:01:00]} 47. Kf2 {[%clk
0:01:11.5]} 47... Nb4 {[%clk 0:00:45.6]} 48. g7 {[%clk 0:01:09.1]} 48... Nxg7
{[%clk 0:00:45.5]} 49. Rxg7 {[%clk 0:01:09.2]} 49... Nd3+ {[%clk 0:00:45.8]} 50.
Kf1 {[%clk 0:01:09.4]} 50... f3 {[%clk 0:00:42.1]} 51. Rg5 {[%clk 0:01:08.7]}
51... Nf4 {[%clk 0:00:40.1]} 52. Ra5 {[%clk 0:00:59.8]} 52... Ke3 {[%clk
0:00:37.9]} 53. Ra3+ {[%clk 0:00:51.9]} 53... Nd3 {[%clk 0:00:35.9]} 54. Ra5
{[%clk 0:00:43.8]} 54... Nf4 {[%clk 0:00:36.1]} 55. Re5+ {[%clk 0:00:42.1]}
55... Kd4 {[%clk 0:00:34.6]} 56. Re8 {[%clk 0:00:42.8]} 56... Ng2 {[%clk
0:00:30.4]} 57. Ra8 {[%clk 0:00:40.7]} 57... Ke3 {[%clk 0:00:26.3]} 58. Re8+
{[%clk 0:00:40]} 58... Kf4 {[%clk 0:00:26]} 59. Kf2 {[%clk 0:00:38]} 59... Nxh4
{[%clk 0:00:21.3]} 60. Rf8+ {[%clk 0:00:38.5]} 60... Kg5 {[%clk 0:00:21.5]} 61.
Kg3 {[%clk 0:00:37.9]} 61... Nf5+ {[%clk 0:00:20.4]} 62. Kxf3 {[%clk 0:00:37.8]}
62... Nd4+ {[%clk 0:00:20.9]} 63. Kg3 {[%clk 0:00:37.9]} 63... Ne6 {[%clk
0:00:21.5]} 64. Rg8+ {[%clk 0:00:37.9]} 64... Kh6 {[%clk 0:00:21.2]} 65. Kh4
{[%clk 0:00:37.8]} 65... Nf4 {[%clk 0:00:20.3]} 66. Rh8+ {[%clk 0:00:35.7]}
66... Kg6 {[%clk 0:00:20.3]} 67. Rf8 {[%clk 0:00:34.7]} 67... Ne6 {[%clk
0:00:19]} 68. Rg8+ {[%clk 0:00:34.6]} 68... Kh6 {[%clk 0:00:17.7]} 69. Rh8+
{[%clk 0:00:35.1]} 69... Kg6 {[%clk 0:00:18.1]} 70. Rxh5 {[%clk 0:00:35.5]}
70... Nf4 {[%clk 0:00:16.2]} 71. Rg5+ {[%clk 0:00:35.7]} 71... Kf6 {[%clk
0:00:15.7]} 72. Ra5 {[%clk 0:00:36.6]} 72... Ng6+ {[%clk 0:00:15.6]} 73. Kg4
{[%clk 0:00:37]} 73... Ne5+ {[%clk 0:00:15.5]} 74. Kf4 {[%clk 0:00:37.8]} 74...
Ng6+ {[%clk 0:00:15.7]} 75. Ke4 {[%clk 0:00:38.7]} 75... Kg7 {[%clk 0:00:15.3]}
76. Kf5 {[%clk 0:00:38.8]} 76... Ne7+ {[%clk 0:00:14.7]} 77. Kg5 {[%clk
0:00:39.4]} 77... Ng8 {[%clk 0:00:13.6]} 78. Ra7+ {[%clk 0:00:39.6]} 78... Kh8
{[%clk 0:00:14]} 79. Kg6 {[%clk 0:00:38.7]} 79... Nh6 {[%clk 0:00:07.4]} 80.
Kxh6 {[%clk 0:00:38.5]} 80... Kg8 {[%clk 0:00:07.3]} 81. Kg6 {[%clk 0:00:37.7]}
81... Kf8 {[%clk 0:00:07.3]} 82. Kf6 {[%clk 0:00:37.9]} 82... Kg8 {[%clk
0:00:07.6]} 83. Re7 {[%clk 0:00:37]} 83... Kh8 {[%clk 0:00:06.7]} 84. Kg6 {[%clk
0:00:37.4]} 84... Kg8 {[%clk 0:00:05.8]} 85. Re8# {[%clk 0:00:38.3]} 1-0

[Event "Early-Titled-Tuesday-Blitz-June-18-2024"]
[Site "Chess.com"]
[Date "2024.06.18"]
[Round "2"]
[White "GothamChess"]
[Black "savitha1030"]
[Result "1/2-1/2"]
[WhiteElo "2782"]
[BlackElo "2568"]
[TimeControl "180+1"]
[EndTime "8:19:43 PDT"]
[Termination "Game drawn - insufficient material"]

1. e4 {[%clk 0:03:00.9]} 1... c5 {[%clk 0:02:59.9]} 2. Nc3 {[%clk 0:03:00.9]}
2... g6 {[%clk 0:02:55.7]} 3. d4 {[%clk 0:03:00.7]} 3... Bg7 {[%clk 0:02:49.3]}
4. Be3 {[%clk 0:02:56.9]} 4... Nc6 {[%clk 0:02:36.9]} 5. d5 {[%clk 0:02:55]}
5... Nd4 {[%clk 0:02:37.3]} 6. Nge2 {[%clk 0:02:52.9]} 6... Nxe2 {[%clk
0:02:36.9]} 7. Bxe2 {[%clk 0:02:52.5]} 7... d6 {[%clk 0:02:37.5]} 8. h4 {[%clk
0:02:48.7]} 8... h5 {[%clk 0:02:31.2]} 9. f3 {[%clk 0:02:46]} 9... Nf6 {[%clk
0:02:28.5]} 10. Qd2 {[%clk 0:02:46.1]} 10... Bd7 {[%clk 0:02:28.8]} 11. a4
{[%clk 0:02:45.1]} 11... Qb6 {[%clk 0:02:10.5]} 12. Bb5 {[%clk 0:02:38.6]} 12...
a6 {[%clk 0:02:07.3]} 13. a5 {[%clk 0:02:33.6]} 13... Qc7 {[%clk 0:02:05.8]} 14.
Be2 {[%clk 0:02:25.4]} 14... b5 {[%clk 0:02:02.6]} 15. axb6 {[%clk 0:02:23.2]}
15... Qxb6 {[%clk 0:02:02.8]} 16. Ra2 {[%clk 0:02:19.4]} 16... O-O {[%clk
0:02:02.8]} 17. O-O {[%clk 0:02:09.5]} 17... Bb5 {[%clk 0:01:27.4]} 18. Rfa1
{[%clk 0:02:06.1]} 18... Bxe2 {[%clk 0:01:27.7]} 19. Qxe2 {[%clk 0:01:57.3]}
19... a5 {[%clk 0:01:28.1]} 20. Qd2 {[%clk 0:01:45]} 20... Nd7 {[%clk
0:01:23.8]} 21. Bh6 {[%clk 0:01:44.4]} 21... Bd4+ {[%clk 0:01:22.8]} 22. Kh1
{[%clk 0:01:42.7]} 22... Rfb8 {[%clk 0:01:22.5]} 23. Ne2 {[%clk 0:01:38.9]}
23... Bf6 {[%clk 0:01:12.6]} 24. Bg5 {[%clk 0:01:36.5]} 24... Ne5 {[%clk
0:01:09.4]} 25. Bxf6 {[%clk 0:01:35.4]} 25... exf6 {[%clk 0:01:10.3]} 26. b3
{[%clk 0:01:29.1]} 26... c4 {[%clk 0:01:10.1]} 27. Nd4 {[%clk 0:01:17.5]} 27...
cxb3 {[%clk 0:01:03]} 28. cxb3 {[%clk 0:01:05.1]} 28... Qb4 {[%clk 0:01:01]} 29.
Qxb4 {[%clk 0:00:59.3]} 29... Rxb4 {[%clk 0:01:01.9]} 30. Ra4 {[%clk 0:00:56.9]}
30... Rab8 {[%clk 0:00:59.4]} 31. Kg1 {[%clk 0:00:46.2]} 31... Nd3 {[%clk
0:00:54.8]} 32. Kf1 {[%clk 0:00:39.3]} 32... Nc5 {[%clk 0:00:53.9]} 33. Rxb4
{[%clk 0:00:30.7]} 33... Rxb4 {[%clk 0:00:54.8]} 34. Nc6 {[%clk 0:00:29.3]}
34... Rxb3 {[%clk 0:00:54.7]} 35. Nxa5 {[%clk 0:00:24.5]} 35... Rc3 {[%clk
0:00:43.3]} 36. Ra2 {[%clk 0:00:20.7]} 36... f5 {[%clk 0:00:43.3]} 37. exf5
{[%clk 0:00:17.5]} 37... gxf5 {[%clk 0:00:44.2]} 38. Ke2 {[%clk 0:00:12]} 38...
Rd3 {[%clk 0:00:37.6]} 39. Rd2 {[%clk 0:00:11.3]} 39... Rc3 {[%clk 0:00:31]} 40.
Nc6 {[%clk 0:00:10.8]} 40... Kg7 {[%clk 0:00:30]} 41. Nd4 {[%clk 0:00:08.9]}
41... Kf6 {[%clk 0:00:29.8]} 42. Nb5 {[%clk 0:00:09.5]} 42... Rc4 {[%clk
0:00:22.8]} 43. Nxd6 {[%clk 0:00:09.5]} 43... Rxh4 {[%clk 0:00:23.4]} 44. Ne8+
{[%clk 0:00:07.9]} 44... Ke7 {[%clk 0:00:22.2]} 45. Ng7 {[%clk 0:00:08.1]} 45...
Kf6 {[%clk 0:00:22.7]} 46. Ne8+ {[%clk 0:00:07.2]} 46... Ke7 {[%clk 0:00:23.3]}
47. Nc7 {[%clk 0:00:07.7]} 47... Nb7 {[%clk 0:00:18.2]} 48. Kf2 {[%clk
0:00:03.7]} 48... Nd6 {[%clk 0:00:14.8]} 49. Re2+ {[%clk 0:00:04]} 49... Kd7
{[%clk 0:00:14.8]} 50. Na6 {[%clk 0:00:04]} 50... Rd4 {[%clk 0:00:14.8]} 51.
Nc5+ {[%clk 0:00:03.6]} 51... Kd8 {[%clk 0:00:15.1]} 52. Re5 {[%clk 0:00:03.6]}
52... f6 {[%clk 0:00:14]} 53. Ne6+ {[%clk 0:00:03.4]} 53... Kd7 {[%clk
0:00:11.3]} 54. Nxd4 {[%clk 0:00:02.2]} 54... fxe5 {[%clk 0:00:11.9]} 55. Nc6
{[%clk 0:00:02.9]} 55... e4 {[%clk 0:00:11.8]} 56. Ke3 {[%clk 0:00:03.3]} 56...
exf3 {[%clk 0:00:11.6]} 57. Kxf3 {[%clk 0:00:03.7]} 57... Ne4 {[%clk 0:00:09.8]}
58. Kf4 {[%clk 0:00:02.5]} 58... Kd6 {[%clk 0:00:10.4]} 59. Nb4 {[%clk
0:00:02.7]} 59... h4 {[%clk 0:00:06.7]} 60. Kxf5 {[%clk 0:00:02.2]} 60... Ng3+
{[%clk 0:00:06]} 61. Kg4 {[%clk 0:00:02.6]} 61... Kc5 {[%clk 0:00:03.7]} 62.
Kxh4 {[%clk 0:00:02.6]} 62... Nf5+ {[%clk 0:00:04.3]} 63. Kg5 {[%clk 0:00:03.2]}
63... Nd6 {[%clk 0:00:05]} 64. Nd3+ {[%clk 0:00:03.5]} 64... Kxd5 {[%clk
0:00:05.4]} 65. Nf4+ {[%clk 0:00:03.6]} 65... Ke5 {[%clk 0:00:05.5]} 66. g4
{[%clk 0:00:04.4]} 66... Nf7+ {[%clk 0:00:04.4]} 67. Kg6 {[%clk 0:00:04.8]}
67... Kxf4 {[%clk 0:00:04.9]} 68. Kxf7 {[%clk 0:00:05.3]} 68... Kxg4 {[%clk
0:00:05.5]} 1/2-1/2

[Event "Early-Titled-Tuesday-Blitz-June-18-2024"]
[Site "Chess.com"]
[Date "2024.06.18"]
[Round "2"]
[White "Bigfish1995"]
[Black "ellatambien"]
[Result "1-0"]
[WhiteElo "3130"]
[BlackElo "2679"]
[TimeControl "180+1"]
[EndTime "8:19:44 PDT"]
[Termination "Bigfish1995 won on time"]

1. Nf3 {[%clk 0:03:00.9]} 1... d5 {[%clk 0:02:59.1]} 2. e3 {[%clk 0:02:59.4]}
2... Nf6 {[%clk 0:02:58.2]} 3. b3 {[%clk 0:02:58.6]} 3... c5 {[%clk 0:02:53]} 4.
Bb2 {[%clk 0:02:54.5]} 4... Nc6 {[%clk 0:02:53]} 5. Bb5 {[%clk 0:02:53.5]} 5...
Bd7 {[%clk 0:02:49.9]} 6. O-O {[%clk 0:02:52.4]} 6... e6 {[%clk 0:02:45.7]} 7.
c4 {[%clk 0:02:52.2]} 7... Bd6 {[%clk 0:02:42.6]} 8. d4 {[%clk 0:02:42.2]} 8...
a6 {[%clk 0:02:35.8]} 9. dxc5 {[%clk 0:02:38.7]} 9... Bxc5 {[%clk 0:02:33.6]}
10. cxd5 {[%clk 0:02:31.1]} 10... exd5 {[%clk 0:02:32.8]} 11. Bxc6 {[%clk
0:02:25]} 11... Bxc6 {[%clk 0:02:32.9]} 12. Ba3 {[%clk 0:02:17.5]} 12... Bxa3
{[%clk 0:02:29]} 13. Nxa3 {[%clk 0:02:17.5]} 13... O-O {[%clk 0:02:29.9]} 14.
Nc2 {[%clk 0:02:14.4]} 14... Ne4 {[%clk 0:02:27]} 15. Ncd4 {[%clk 0:02:14]}
15... Bd7 {[%clk 0:02:24.1]} 16. Qe2 {[%clk 0:02:12.6]} 16... Qf6 {[%clk
0:02:21]} 17. Rac1 {[%clk 0:02:09.3]} 17... Rac8 {[%clk 0:02:17.8]} 18. Qb2
{[%clk 0:02:02.8]} 18... h6 {[%clk 0:02:11]} 19. h3 {[%clk 0:01:58.4]} 19...
Rfe8 {[%clk 0:02:05.5]} 20. a4 {[%clk 0:01:54.6]} 20... Qb6 {[%clk 0:01:56.7]}
21. Qa1 {[%clk 0:01:43.8]} 21... Qf6 {[%clk 0:01:54.2]} 22. a5 {[%clk
0:01:36.3]} 22... Qd6 {[%clk 0:01:53.9]} 23. Rfd1 {[%clk 0:01:27.8]} 23... Qf6
{[%clk 0:01:50.6]} 24. Qb2 {[%clk 0:01:23.1]} 24... Qd6 {[%clk 0:01:50.2]} 25.
b4 {[%clk 0:01:19]} 25... Qf6 {[%clk 0:01:45.3]} 26. Qb3 {[%clk 0:01:16.1]}
26... Qd6 {[%clk 0:01:42.8]} 27. Ne2 {[%clk 0:01:14.2]} 27... Rxc1 {[%clk
0:01:33.8]} 28. Rxc1 {[%clk 0:01:12.3]} 28... Bb5 {[%clk 0:01:34]} 29. Nf4
{[%clk 0:01:10.5]} 29... Bc4 {[%clk 0:01:31.7]} 30. Qb2 {[%clk 0:01:09.5]} 30...
Nf6 {[%clk 0:01:20.9]} 31. Nd4 {[%clk 0:01:07.2]} 31... Qe5 {[%clk 0:01:16.1]}
32. Qc2 {[%clk 0:01:03]} 32... Ne4 {[%clk 0:01:15.8]} 33. Nd3 {[%clk 0:00:54.5]}
33... Qf6 {[%clk 0:01:13.5]} 34. Rd1 {[%clk 0:00:49.7]} 34... Qd6 {[%clk
0:01:10.1]} 35. Qb2 {[%clk 0:00:49.2]} 35... Qf6 {[%clk 0:00:38.7]} 36. Nc5
{[%clk 0:00:49.4]} 36... Nxc5 {[%clk 0:00:37.3]} 37. bxc5 {[%clk 0:00:50.3]}
37... Re7 {[%clk 0:00:37.1]} 38. Qb6 {[%clk 0:00:49.1]} 38... Rd7 {[%clk
0:00:30.7]} 39. Qxf6 {[%clk 0:00:21.5]} 39... gxf6 {[%clk 0:00:29.4]} 40. Nf5
{[%clk 0:00:22.2]} 40... Rc7 {[%clk 0:00:28.4]} 41. Nxh6+ {[%clk 0:00:22.2]}
41... Kf8 {[%clk 0:00:28.4]} 42. Rb1 {[%clk 0:00:20.6]} 42... Bb5 {[%clk
0:00:24.7]} 43. Rc1 {[%clk 0:00:19.6]} 43... Bc4 {[%clk 0:00:24.5]} 44. Rb1
{[%clk 0:00:19.1]} 44... Bb5 {[%clk 0:00:24.4]} 45. Nf5 {[%clk 0:00:19.6]} 45...
Rxc5 {[%clk 0:00:24]} 46. Nd6 {[%clk 0:00:18.3]} 46... Bc6 {[%clk 0:00:13]} 47.
Nxb7 {[%clk 0:00:18.8]} 47... Bxb7 {[%clk 0:00:08.5]} 48. Rxb7 {[%clk
0:00:19.7]} 48... Rxa5 {[%clk 0:00:09.2]} 49. g4 {[%clk 0:00:19.6]} 49... Ra4
{[%clk 0:00:07.8]} 50. Rd7 {[%clk 0:00:18.2]} 50... Ra5 {[%clk 0:00:08]} 51. Kg2
{[%clk 0:00:18.6]} 51... Ke8 {[%clk 0:00:08.5]} 52. Rb7 {[%clk 0:00:15.5]} 52...
Ra4 {[%clk 0:00:08.3]} 53. Kf3 {[%clk 0:00:13.7]} 53... d4 {[%clk 0:00:08.7]}
54. exd4 {[%clk 0:00:10.7]} 54... Rxd4 {[%clk 0:00:09.6]} 55. Rb6 {[%clk
0:00:11.2]} 55... Ra4 {[%clk 0:00:09.4]} 56. Rxf6 {[%clk 0:00:10.8]} 56... Ra3+
{[%clk 0:00:10.3]} 57. Kg2 {[%clk 0:00:10.8]} 57... a5 {[%clk 0:00:11.2]} 58. h4
{[%clk 0:00:10.9]} 58... Ke7 {[%clk 0:00:11.5]} 59. Ra6 {[%clk 0:00:10.8]} 59...
Ra4 {[%clk 0:00:11.8]} 60. Kg3 {[%clk 0:00:10.9]} 60... Ra3+ {[%clk 0:00:12.3]}
61. f3 {[%clk 0:00:11]} 61... Ra1 {[%clk 0:00:12.9]} 62. g5 {[%clk 0:00:11.2]}
62... a4 {[%clk 0:00:13.4]} 63. Kf4 {[%clk 0:00:10.5]} 63... a3 {[%clk
0:00:13.4]} 64. h5 {[%clk 0:00:10.2]} 64... a2 {[%clk 0:00:08.3]} 65. h6 {[%clk
0:00:10.3]} 65... f6 {[%clk 0:00:06]} 66. g6 {[%clk 0:00:08]} 66... Rh1 {[%clk
0:00:04.4]} 67. Ra7+ {[%clk 0:00:06.9]} 67... Ke6 {[%clk 0:00:04.3]} 68. h7
{[%clk 0:00:07]} 68... Rh6 {[%clk 0:00:01.7]} 69. Rxa2 {[%clk 0:00:06.6]} 1-0